fUST/lending_fUST_20250617
["ID","MTS","AMOUNT","RATE_DAILY","PERIOD"]
[366248862,1750163458229,-1547.3,0.00024328,6]
[366248863,1750163458240,-367.66414172,0.00024328,6]
[366248864,1750163458251,-639.97903999,0.00024328,6]
[366248865,1750163458853,-394.32603053,0.0002156,2]
[366248866,1750163458863,-200.45636944,0.0002156,2]
[366248867,1750163458978,-0.0183767,0.0002156,2]
[366248868,1750163459155,-299.52525386,0.0002156,2]
[366248869,1750163459167,-500.0,0.0002156,2]
[366248870,1750163459177,-500.0,0.0002156,2]
[366248871,1750163459187,-269.65766416,0.0002156,2]
[366248872,1750163459958,-230.34233584,0.0002156,2]
[366248873,1750163459967,-500.0,0.0002156,2]
[366248874,1750163459977,-500.0,0.0002156,2]
[366248875,1750163459987,-500.0,0.0002156,2]
[366248876,1750163459996,-500.0,0.0002156,2]
[366248877,1750163460006,-500.0,0.0002156,2]
[366248878,1750163460016,-500.0,0.0002156,2]
[366248879,1750163460027,-500.0,0.0002156,2]
[366248880,1750163460037,-500.0,0.0002156,2]
[366248881,1750163460047,-500.0,0.0002156,2]
[366248882,1750163460057,-500.0,0.0002156,2]
[366248883,1750163460066,-500.0,0.0002156,2]
[366248884,1750163460078,-1097.46302591,0.00022984,2]
[366248885,1750163460100,-1097.46302591,0.00023481,2]
[366248886,1750163460120,-1097.46302591,0.00023979,2]
[366248887,1750163460140,-460.0,0.00024109,6]
[366248888,1750163460161,-460.0,0.00024109,6]
[366248889,1750163460183,-460.0,0.00024109,6]
[366248890,1750163460201,-460.0,0.00024109,6]
[366248891,1750163460224,-460.0,0.00024109,6]
[366248892,1750163460240,-460.0,0.00024136,6]
[366248893,1750163460259,-353.96134002,0.00024164,6]
[366248894,1750163460672,-2.36226217,0.00024164,6]
[366248895,1750163461689,150.0,0.00017957,2]
[366248896,1750163461744,221.81,0.00018812,2]
[366248897,1750163523563,-154.60828437,0.00019646,2]
[366248898,1750163523590,-500.0,0.00019646,2]
[366248899,1750163523614,-500.0,0.00019646,2]
[366248900,1750163523636,-332.99216127,0.00019646,2]
[366248901,1750163523659,-175.72434608,0.00019646,2]
[366248902,1750163523682,-500.0,0.00019646,2]
[366248903,1750163523706,-500.0,0.00019646,2]
[366248904,1750163523729,-500.0,0.00019646,2]
[366248905,1750163523753,-526.17135847,0.00019646,2]
[366248906,1750163523778,-204.59816173,0.00019646,2]
[366248907,1750163523802,-192.90568808,0.00019667,2]
[366248908,1750163524319,150.0,0.00017941,2]
[366248909,1750163524805,212.35,0.00018795,2]
[366248919,1750163594506,-150.0,0.0001965,2]
[366248920,1750163604472,150.0,0.00017959,2]
[366248921,1750163605138,150.0,0.00018814,2]
[366248922,1750163605165,96.2,0.00018814,2]
[366249072,1750163659814,-5000.0,0.00019472,2]
[366249073,1750163659842,-362.0,0.00019669,2]
[366249091,1750163686000,150.0,0.00018666,2]
[366249153,1750163728982,-193.0,0.00019472,2]
[366249202,1750163750624,-4807.0,0.00019472,2]
[366249203,1750163750648,-238.17,0.00019555,2]
[366249204,1750163750670,-357.26,0.00020444,2]
[366249205,1750163750692,-500.0,0.00020821,2]
[366249206,1750163750721,-374.98300914,0.000209,4]
[366249207,1750163750743,-541.18550883,0.00021016,2]
[366249208,1750163750767,-551.0,0.00021059,2]
[366249209,1750163750789,-1200.0,0.00021071,2]
[366249210,1750163750817,-374.98300891,0.00021072,4]
[366249211,1750163750843,-551.0,0.00021078,2]
[366249212,1750163750864,-300.0,0.00021156,2]
[366249213,1750163750885,-204.41847312,0.00021157,2]
[366249214,1750163753567,247.09401047,0.000191,2]
[366249215,1750163753592,4752.90598953,0.000191,2]
[366249216,1750163763466,150.0,0.00018604,2]
[366249218,1750163769827,-267.78541315,0.00019295,2]
[366249219,1750163844199,150.0,0.00018675,2]
[366249220,1750163856142,-4732.21458685,0.00019295,2]
[366249221,1750163856168,-226.57,0.00019565,2]
[366249222,1750163856192,-41.21541315,0.00020373,2]
[366249227,1750163921164,150.0,0.00018596,2]
[366249230,1750163982064,155.269,0.00021918,60]
[366249231,1750163999156,150.0,0.00018612,2]
[366249233,1750164059217,5000.0,0.000191,2]
[366249236,1750164075151,1706.93061832,0.000191,2]
[366249237,1750164079457,150.0,0.00018605,2]
[366249239,1750164162553,153.17,0.00018678,2]
[366249240,1750164177762,240.948258,0.00013699,2]
[366249246,1750164246174,151.22,0.00018595,2]
[366249250,1750164325922,150.0,0.00018595,2]
[366249276,1750164362206,7094.82513415,0.000188,2]
[366249277,1750164362235,20000.0,0.000188,2]
[366249278,1750164362262,20000.0,0.000188,2]
[366249279,1750164362291,20000.0,0.000188,2]
[366249280,1750164362320,20000.0,0.000188,2]
[366249281,1750164362351,20000.0,0.000188,2]
[366249282,1750164362379,20000.0,0.000188,2]
[366249283,1750164362406,20000.0,0.000188,2]
[366249284,1750164362432,20000.0,0.000188,2]
[366249285,1750164362458,20000.0,0.000188,2]
[366249286,1750164362484,20000.0,0.000188,2]
[366249287,1750164362510,20000.0,0.000188,2]
[366249288,1750164362536,20000.0,0.000188,2]
[366249289,1750164362563,20000.0,0.000188,2]
[366249290,1750164362594,20000.0,0.000188,2]
[366249291,1750164362621,20000.0,0.000188,2]
[366249292,1750164362648,20000.0,0.000188,2]
[366249293,1750164362675,20000.0,0.000188,2]
[366249294,1750164362701,20000.0,0.000188,2]
[366249295,1750164362727,20000.0,0.000188,2]
[366249296,1750164362753,20000.0,0.000188,2]
[366249297,1750164362779,20000.0,0.000188,2]
[366249298,1750164362811,20000.0,0.000188,2]
[366249299,1750164362842,20000.0,0.000188,2]
[366249300,1750164362870,20000.0,0.000188,2]
[366249301,1750164362897,20000.0,0.000188,2]
[366249302,1750164362922,20000.0,0.000188,2]
[366249303,1750164362948,20000.0,0.000188,2]
[366249304,1750164362975,20000.0,0.000188,2]
[366249305,1750164363003,20000.0,0.000188,2]
[366249306,1750164363029,20000.0,0.000188,2]
[366249307,1750164363056,20000.0,0.000188,2]
[366249308,1750164363085,20000.0,0.000188,2]
[366249309,1750164363111,20000.0,0.000188,2]
[366249310,1750164363138,20000.0,0.000188,2]
[366249311,1750164363165,20000.0,0.000188,2]
[366249312,1750164363192,20000.0,0.000188,2]
[366249313,1750164363217,20000.0,0.000188,2]
[366249314,1750164363244,20000.0,0.000188,2]
[366249315,1750164363271,20000.0,0.000188,2]
[366249316,1750164363298,20000.0,0.000188,2]
[366249317,1750164363323,20000.0,0.000188,2]
[366249318,1750164363351,20000.0,0.000188,2]
[366249319,1750164363376,20000.0,0.000188,2]
[366249320,1750164363401,20000.0,0.000188,2]
[366249321,1750164363426,20000.0,0.000188,2]
[366249322,1750164363584,20000.0,0.000188,2]
[366249323,1750164363612,20000.0,0.000188,2]
[366249324,1750164363638,20000.0,0.000188,2]
[366249325,1750164363664,20000.0,0.000188,2]
[366249326,1750164363690,12905.17486585,0.000188,2]
[366249329,1750164374455,1783.34182317,0.000189,2]
[366249330,1750164408814,150.0,0.00018583,2]
[366249333,1750164491370,150.0,0.00018583,2]
[366249362,1750164624579,1188.89454878,0.000189,2]
[366249383,1750164631999,-185.75373423,0.00019161,2]
[366249385,1750164632009,-222.90448108,0.00019762,2]
[366249387,1750164632019,-240.948258,0.00020187,2]
[366249389,1750164632030,-2634.1054743,0.00020262,2]
[366249391,1750164632039,-154.41911208,0.00020273,2]
[366249393,1750164632049,-618.61073865,0.00020373,2]
[366249395,1750164632058,-231.02026586,0.00020388,2]
[366249397,1750164632069,-500.0,0.00020492,2]
[366249399,1750164632078,-275.357059,0.00020565,2]
[366249401,1750164632089,-188.988832,0.00020873,2]
[366249403,1750164632099,-154.41911208,0.00020999,2]
[366249405,1750164632111,-300.0,0.00021098,2]
[366249406,1750164632121,-300.0,0.00021098,2]
[366249409,1750164632130,-1200.0,0.00021098,2]
[366249410,1750164632140,-504.44630071,0.00021099,2]
[366249414,1750164632165,-189.39979575,0.00021098,2]
[366249416,1750164632175,-500.0,0.00021098,2]
[366249418,1750164632186,-126.02121023,0.00021099,2]
[366249420,1750164632195,-336.16123345,0.00021099,2]
[366249423,1750164632219,-376.30660199,0.00021098,2]
[366249425,1750164632229,-500.0,0.00021098,2]
[366249427,1750164632239,-500.0,0.00021098,2]
[366249429,1750164632248,-299.85387588,0.00021099,2]
[366249431,1750164632258,-636.01510933,0.00021099,2]
[366249433,1750164632275,-636.01510933,0.00021099,2]
[366249435,1750164632293,-636.01510933,0.00021099,2]
[366249437,1750164632303,-636.01510933,0.00021099,2]
[366249439,1750164632312,-636.01510933,0.00021099,2]
[366249441,1750164632321,-636.01510933,0.00021099,2]
[366249443,1750164632331,-636.01510933,0.00021099,2]
[366249445,1750164632341,-636.01510933,0.00021099,2]
[366249447,1750164632350,-636.01510933,0.00021099,2]
[366249449,1750164632359,-636.01510933,0.00021099,2]
[366249451,1750164632368,-636.01510933,0.00021099,2]
[366249453,1750164632378,-636.01510933,0.00021099,2]
[366249455,1750164632387,-636.01510933,0.00021099,2]
[366249457,1750164632396,-636.01510933,0.00021099,2]
[366249459,1750164632406,-636.01510933,0.00021099,2]
[366249461,1750164632415,-636.01510933,0.00021099,2]
[366249463,1750164632424,-636.01510933,0.00021099,2]
[366249465,1750164632433,-636.01510933,0.00021099,2]
[366249466,1750164632443,-636.01510933,0.00021099,2]
[366249468,1750164632452,-636.01510933,0.00021099,2]
[366249469,1750164632462,-667.81586479,0.00021099,2]
[366249471,1750164632471,-667.81586479,0.00021099,2]
[366249473,1750164632480,-667.81586479,0.00021099,2]
[366249475,1750164632489,-667.81586479,0.00021099,2]
[366249477,1750164632499,-667.81586479,0.00021099,2]
[366249478,1750164632508,-667.81586479,0.00021099,2]
[366249480,1750164632517,-667.81586479,0.00021099,2]
[366249481,1750164632527,-667.81586479,0.00021099,2]
[366249483,1750164632537,-53103.271115,0.000211,7]
[366249484,1750164632547,-315.45388124,0.000211,7]
[366249486,1750164632557,-12540.12310952,0.000211,7]
[366249488,1750164632567,-300.0,0.00021156,2]
[366249489,1750164632577,-8390.61808058,0.00021157,2]
[366249491,1750164632587,-1832.16,0.000212,2]
[366249492,1750164632596,-255.0,0.00021541,2]
[366249494,1750164632606,-551.0,0.00021544,2]
[366249495,1750164632615,-1000.0,0.0002159,2]
[366249497,1750164632625,-166.0,0.000216,2]
[366249499,1750164632635,-166.0,0.000216,2]
[366249501,1750164632644,-166.0,0.000216,2]
[366249502,1750164632654,-166.0,0.000216,2]
[366249503,1750164632663,-166.0,0.000216,2]
[366249505,1750164632672,-166.0,0.000216,2]
[366249507,1750164632682,-166.0,0.000216,2]
[366249509,1750164632691,-551.0,0.00021603,2]
[366249510,1750164632701,-551.0,0.00021702,2]
[366249511,1750164632710,-237.43,0.00021717,2]
[366249512,1750164632719,-12118.8066171,0.00021719,2]
[366249513,1750164632729,-1000.0,0.00021831,2]
[366249514,1750164632738,-627.1827055,0.00021874,2]
[366249515,1750164632748,-525.12324083,0.000219,6]
[366249516,1750164632758,-845.62440851,0.00021904,2]
[366249517,1750164632767,-160.0,0.00021909,2]
[366249518,1750164632777,-160.0,0.00021909,2]
[366249519,1750164632786,-160.0,0.00021909,2]
[366249520,1750164632796,-12540.12310952,0.00021909,2]
[366249521,1750164632806,-160.0,0.00021909,2]
[366249522,1750164632817,-424.62582665,0.00021919,2]
[366249523,1750164632826,-160.0,0.00021919,2]
[366249524,1750164632836,-160.0,0.00021919,2]
[366249525,1750164632845,-315.45388124,0.00021919,2]
[366249526,1750164632855,-229.94211981,0.00021919,2]
[366249527,1750164632864,-213.39869953,0.00021919,2]
[366249528,1750164632873,-835.82910252,0.00021919,2]
[366249529,1750164632883,-551.0,0.00021958,2]
[366249530,1750164632892,-551.0,0.00021992,2]
[366249531,1750164632902,-164.0,0.00022,2]
[366249532,1750164632912,-165.0,0.00022,2]
[366249533,1750164632921,-155.0,0.00022,2]
[366249534,1750164632931,-525.12324067,0.00022038,6]
[366249535,1750164632940,-1000.0,0.00022118,2]
[366249536,1750164632950,-908.96,0.0002212,2]
[366249537,1750164632960,-525.12324067,0.00022176,6]
[366249538,1750164632970,-22365.67195807,0.0002223,4]
[366249539,1750164632979,-525.12324067,0.00022314,7]
[366249540,1750164632989,-525.12324067,0.00022452,7]
[366249541,1750164632998,-150.0,0.00022547,2]
[366249542,1750164633008,-525.12324067,0.0002259,7]
[366249543,1750164633018,-500.0,0.00022684,2]
[366249544,1750164633028,-160.0,0.00022686,2]
[366249545,1750164633038,-5000.0,0.00022687,2]
[366249546,1750164633048,-207.4,0.00022687,2]
[366249547,1750164633059,-1832.16,0.000227,7]
[366249548,1750164633068,-525.12324067,0.00022728,7]
[366249549,1750164633078,-525.12324067,0.00022866,8]
[366249550,1750164633088,-420.0,0.00022948,2]
[366249551,1750164633100,-525.12324067,0.00023003,8]
[366249552,1750164633113,-420.0,0.00023009,2]
[366249553,1750164633123,-346.0,0.00023056,2]
[366249554,1750164633133,-525.12324067,0.00023141,8]
[366249555,1750164633263,-370.60285798,0.00023146,2]
[366249556,1750164633274,-525.12324067,0.00023279,8]
[366249557,1750164633284,-1000.0,0.000233,7]
[366249558,1750164633294,-1000.0,0.000233,7]
[366249559,1750164633304,-1000.0,0.000233,7]
[366249560,1750164633314,-1000.0,0.000233,7]
[366249561,1750164633325,-1000.0,0.000233,7]
[366249562,1750164633335,-1000.0,0.000233,7]
[366249563,1750164633344,-500.0,0.0002332,2]
[366249564,1750164633354,-500.0,0.0002332,2]
[366249565,1750164633364,-500.0,0.0002332,2]
[366249566,1750164633374,-2160.0,0.00023332,2]
[366249567,1750164633384,-653.0,0.00023332,2]
[366249568,1750164633394,-406.0,0.00023332,2]
[366249569,1750164633404,-158.9019424,0.00023397,2]
[366249570,1750164633414,-525.12324067,0.00023417,9]
[366249571,1750164633424,-573.8932911,0.00023425,2]
[366249572,1750164633434,-525.12324067,0.00023555,9]
[366249573,1750164633444,-166.0,0.000236,4]
[366249574,1750164633454,-171.63002737,0.000236,4]
[366249575,1750164633464,-370.60285798,0.00023603,2]
[366249576,1750164633477,-287.13,0.00023621,2]
[366249577,1750164633492,-500.0,0.0002365,2]
[366249578,1750164633503,-500.0,0.0002365,2]
[366249579,1750164633513,-22.33494363,0.0002365,2]
[366249580,1750164633527,-477.66505637,0.0002365,2]
[366249581,1750164633537,-500.0,0.0002365,2]
[366249582,1750164633547,-500.0,0.0002365,2]
[366249583,1750164633557,-525.12324067,0.00023693,9]
[366249584,1750164633569,-1000.0,0.000238,7]
[366249585,1750164633580,-1825.03,0.000238,7]
[366249586,1750164633591,-525.12324067,0.00023831,10]
[366249587,1750164633601,-551.0,0.00023837,2]
[366249588,1750164633611,-476.661811,0.00023841,3]
[366249589,1750164633621,-1188.89454878,0.000239,2]
[366249590,1750164633631,-525.12324067,0.00023969,10]
[366249591,1750164633641,-779.05,0.00023999,3]
[366249592,1750164633655,-151.0,0.00024,7]
[366249593,1750164633665,-151.0,0.00024,7]
[366249594,1750164633674,-854.5,0.00024,2]
[366249595,1750164633684,-2437.0,0.00024,2]
[366249596,1750164633694,-7092.75516783,0.00024,2]
[366249597,1750164633704,-229.94211981,0.00024,7]
[366249598,1750164633714,-1701.56355186,0.00024,2]
[366249599,1750164633729,-424.62582665,0.00024,7]
[366249600,1750164633739,-1832.16,0.00024,7]
[366249601,1750164633749,-7092.75516782,0.00024002,2]
[366249602,1750164633759,-7092.75516782,0.00024005,2]
[366249603,1750164633770,-7092.75516782,0.00024007,2]
[366249604,1750164633780,-7092.75516782,0.00024009,2]
[366249605,1750164633791,-168.47526753,0.00024036,2]
[366249606,1750164633801,-160.0,0.00024056,2]
[366249607,1750164633811,-215.0738,0.00024056,2]
[366249608,1750164633826,-370.60285798,0.0002406,2]
[366249609,1750164633837,-500.38706626,0.00024073,2]
[366249610,1750164633847,-500.0,0.00024073,2]
[366249611,1750164633857,-549.40032849,0.00024073,2]
[366249612,1750164633867,-500.0,0.00024073,2]
[366249613,1750164633877,-500.0,0.00024073,2]
[366249614,1750164633887,-500.0,0.00024073,2]
[366249615,1750164633897,-500.0,0.00024073,2]
[366249616,1750164633907,-365.4795681,0.00024082,2]
[366249617,1750164633917,-365.4795681,0.00024082,2]
[366249618,1750164633927,-365.4795681,0.00024082,2]
[366249619,1750164633937,-365.4795681,0.00024082,2]
[366249620,1750164633947,-365.4795681,0.00024082,2]
[366249621,1750164633956,-368.3825763,0.00024082,2]
[366249622,1750164633966,-519.36,0.0002409,3]
[366249623,1750164633976,-259.68,0.0002409,3]
[366249624,1750164633986,-127954.30447165,0.000241,15]
[366249625,1750164633999,-179072.27088596,0.000241,15]
[366249626,1750164634009,-4770.34,0.000241,7]
[366249627,1750164634019,-525.12324067,0.00024107,10]
[366249628,1750164634028,-151.0,0.00024109,7]
[366249629,1750164634038,-300.4973,0.00024109,7]
[366249630,1750164634047,-403.99512149,0.00024109,6]
[366249631,1750164634058,-460.0,0.00024109,6]
[366249632,1750164634069,-440.0,0.00024109,6]
[366249633,1750164634079,-460.0,0.00024109,6]
[366249634,1750164634089,-430.0,0.00024109,6]
[366249635,1750164634098,-430.0,0.00024109,6]
[366249636,1750164634111,-433.53799033,0.00024109,6]
[366249637,1750164634123,-460.0,0.00024109,6]
[366249638,1750164634133,-430.0,0.00024109,6]
[366249639,1750164634143,-537.37795549,0.00024109,6]
[366249640,1750164634155,-368.42505391,0.00024109,6]
[366249641,1750164634165,-460.0,0.00024109,6]
[366249642,1750164634174,-460.0,0.00024109,6]
[366249643,1750164634184,-460.0,0.00024109,6]
[366249644,1750164634195,-460.0,0.00024109,6]
[366249645,1750164634205,-408.40089247,0.00024109,6]
[366249646,1750164634215,-460.0,0.00024109,6]
[366249647,1750164634226,-438.53826145,0.00024109,6]
[366249648,1750164634236,-460.0,0.00024109,6]
[366249649,1750164634246,-430.0,0.00024109,6]
[366249650,1750164634255,-210.42232648,0.00024109,6]
[366249651,1750164634265,-460.0,0.00024109,6]
[366249652,1750164634275,-460.0,0.00024109,6]
[366249653,1750164634285,-460.0,0.00024109,6]
[366249654,1750164634295,-519.00092518,0.00024109,6]
[366249655,1750164634305,-460.0,0.00024109,6]
[366249656,1750164634316,-460.0,0.00024109,6]
[366249657,1750164634326,-460.0,0.00024109,6]
[366249658,1750164634336,-455.91853493,0.00024109,6]
[366249659,1750164634346,-400.0,0.00024109,6]
[366249660,1750164634356,-403.94940052,0.00024109,6]
[366249661,1750164634369,-406.55056579,0.00024109,6]
[366249662,1750164634379,-460.0,0.00024109,6]
[366249663,1750164634389,-460.0,0.00024109,6]
[366249664,1750164634399,-460.0,0.00024109,6]
[366249665,1750164634410,-460.0,0.00024109,6]
[366249666,1750164634420,-460.0,0.00024109,6]
[366249667,1750164634431,-460.0,0.00024109,6]
[366249668,1750164634441,-262.05129103,0.00024109,6]
[366249669,1750164634451,-589.12,0.00024109,6]
[366249670,1750164634462,-440.0,0.00024109,6]
[366249671,1750164634472,-432.02048485,0.00024109,6]
[366249672,1750164634482,-384.7611609,0.00024109,6]
[366249673,1750164634492,-195.83104979,0.00024109,6]
[366249674,1750164634502,-460.0,0.00024109,6]
[366249675,1750164634513,-460.0,0.00024109,6]
[366249676,1750164634524,-460.0,0.00024109,6]
[366249677,1750164634535,-430.0,0.00024109,6]
[366249678,1750164634545,-352.24875754,0.00024109,6]
[366249679,1750164634555,-460.0,0.00024109,6]
[366249680,1750164634565,-400.0,0.00024109,6]
[366249681,1750164634575,-460.0,0.00024109,6]
[366249682,1750164634585,-460.0,0.00024109,6]
[366249683,1750164634595,-460.0,0.00024109,6]
[366249684,1750164634606,-460.0,0.00024109,6]
[366249685,1750164634615,-460.0,0.00024109,6]
[366249686,1750164634625,-350.0,0.00024109,6]
[366249687,1750164634634,-460.0,0.00024109,6]
[366249688,1750164634644,-226.09733153,0.00024109,6]
[366249689,1750164634654,-460.0,0.00024109,6]
[366249690,1750164634663,-460.0,0.00024109,6]
[366249691,1750164634673,-460.0,0.00024109,6]
[366249692,1750164634682,-460.0,0.00024109,6]
[366249693,1750164634692,-430.0,0.00024109,6]
[366249694,1750164634701,-460.0,0.00024109,6]
[366249695,1750164634711,-433.7936882,0.00024109,6]
[366249696,1750164634720,-460.0,0.00024109,6]
[366249697,1750164634730,-395.99933751,0.00024109,6]
[366249698,1750164634740,-460.0,0.00024109,6]
[366249699,1750164634750,-460.0,0.00024109,6]
[366249700,1750164634760,-151.19199093,0.00024109,6]
[366249701,1750164634770,-460.0,0.00024109,6]
[366249702,1750164634780,-460.0,0.00024109,6]
[366249703,1750164634790,-460.0,0.00024109,6]
[366249704,1750164634799,-508.93316296,0.00024109,6]
[366249705,1750164634809,-309.01305502,0.00024109,6]
[366249706,1750164634820,-460.0,0.00024109,6]
[366249707,1750164634829,-500.91539289,0.00024109,6]
[366249708,1750164634839,-244.6454799,0.00024109,6]
[366249709,1750164634849,-460.0,0.00024109,6]
[366249710,1750164634858,-460.0,0.00024109,6]
[366249711,1750164634868,-460.0,0.00024109,6]
[366249712,1750164634877,-460.0,0.00024109,6]
[366249713,1750164634886,-314.82048546,0.00024109,6]
[366249714,1750164634896,-460.0,0.00024109,6]
[366249715,1750164634905,-460.0,0.00024109,6]
[366249716,1750164634915,-460.0,0.00024109,6]
[366249717,1750164634925,-1493.97,0.00024109,2]
[366249718,1750164634935,-460.0,0.00024109,6]
[366249719,1750164634944,-460.0,0.00024109,6]
[366249720,1750164634954,-415.5658936,0.00024109,6]
[366249721,1750164634964,-444.64933208,0.00024109,6]
[366249722,1750164634974,-460.0,0.00024109,6]
[366249723,1750164634984,-460.0,0.00024109,6]
[366249724,1750164634994,-460.0,0.00024109,6]
[366249725,1750164635004,-184.84815377,0.00024109,6]
[366249726,1750164635013,-460.0,0.00024109,6]
[366249727,1750164635023,-401.74035534,0.00024109,6]
[366249728,1750164635033,-460.0,0.00024109,6]
[366249729,1750164635043,-450.0,0.00024109,6]
[366249730,1750164635052,-460.0,0.00024109,6]
[366249731,1750164635062,-460.0,0.00024109,6]
[366249732,1750164635073,-469.67355986,0.00024109,6]
[366249733,1750164635083,-460.0,0.00024109,6]
[366249734,1750164635093,-460.0,0.00024109,6]
[366249735,1750164635104,-460.0,0.00024109,6]
[366249736,1750164635119,-460.0,0.00024109,6]
[366249737,1750164635130,-460.0,0.00024109,6]
[366249738,1750164635139,-460.0,0.00024109,6]
[366249739,1750164635149,-460.0,0.00024109,6]
[366249740,1750164635158,-430.0,0.00024109,6]
[366249741,1750164635303,-460.0,0.00024109,6]
[366249742,1750164635314,-460.0,0.00024109,6]
[366249743,1750164635325,-500.0,0.00024109,6]
[366249744,1750164635335,-1020.85,0.00024109,6]
[366249745,1750164635344,-460.0,0.00024109,6]
[366249746,1750164635354,-344.06333534,0.00024109,6]
[366249747,1750164635364,-434.4666341,0.00024109,6]
[366249748,1750164635374,-460.0,0.00024109,6]
[366249749,1750164635384,-413.22993907,0.00024109,6]
[366249750,1750164635394,-460.0,0.00024109,6]
[366249751,1750164635404,-460.0,0.00024109,6]
[366249752,1750164635414,-460.0,0.00024109,6]
[366249753,1750164635423,-460.0,0.00024109,6]
[366249754,1750164635432,-205.84302477,0.00024109,6]
[366249755,1750164635443,-460.0,0.00024109,6]
[366249756,1750164635452,-460.0,0.00024109,6]
[366249757,1750164635462,-433.35761123,0.00024109,6]
[366249758,1750164635471,-460.0,0.00024109,6]
[366249759,1750164635481,-546.38165515,0.00024109,6]
[366249760,1750164635491,-460.0,0.00024109,6]
[366249761,1750164635500,-460.0,0.00024109,6]
[366249762,1750164635510,-460.0,0.00024109,6]
[366249763,1750164635520,-460.0,0.00024109,6]
[366249764,1750164635530,-432.88518895,0.00024109,6]
[366249765,1750164635540,-460.0,0.00024109,6]
[366249766,1750164635550,-460.0,0.00024109,6]
[366249767,1750164635560,-500.0,0.00024109,6]
[366249768,1750164635570,-460.0,0.00024109,6]
[366249769,1750164635580,-460.0,0.00024109,6]
[366249770,1750164635590,-460.0,0.00024109,6]
[366249771,1750164635600,-1008.28851184,0.00024109,6]
[366249772,1750164635609,-160.0,0.00024109,7]
[366249773,1750164635619,-460.0,0.00024109,6]
[366249774,1750164635629,-256.45914682,0.00024109,6]
[366249775,1750164635639,-460.0,0.00024109,6]
[366249776,1750164635649,-460.0,0.00024109,6]
[366249777,1750164635659,-151.0,0.00024109,6]
[366249778,1750164635668,-460.0,0.00024109,6]
[366249779,1750164635679,-154.45200966,0.00024109,6]
[366249780,1750164635689,-154.37795966,0.00024109,6]
[366249781,1750164635699,-460.0,0.00024109,6]
[366249782,1750164635708,-460.0,0.00024109,6]
[366249783,1750164635718,-460.0,0.00024109,6]
[366249784,1750164635727,-431.46975702,0.00024109,6]
[366249785,1750164635737,-460.0,0.00024109,6]
[366249786,1750164635747,-460.0,0.00024109,6]
[366249787,1750164635757,-460.0,0.00024109,6]
[366249788,1750164635766,-460.0,0.00024109,6]
[366249789,1750164635776,-460.0,0.00024109,6]
[366249790,1750164635785,-442.51222473,0.00024109,6]
[366249791,1750164635796,-432.94153117,0.00024109,6]
[366249792,1750164635806,-460.0,0.00024109,6]
[366249793,1750164635816,-460.0,0.00024109,6]
[366249794,1750164635826,-435.39705356,0.00024109,6]
[366249795,1750164635835,-460.0,0.00024109,6]
[366249796,1750164635850,-460.0,0.00024109,6]
[366249797,1750164635860,-460.0,0.00024109,6]
[366249798,1750164635870,-975.81,0.00024109,6]
[366249799,1750164635880,-500.0,0.00024109,6]
[366249800,1750164635890,-460.0,0.00024109,6]